fUST/lending_fUST_20250123
["ID","MTS","AMOUNT","RATE_DAILY","PERIOD"]
[350094286,1737622249638,-761.2,0.00019726,3]
[350094287,1737622249648,-500.0,0.00019726,2]
[350094288,1737622249657,-500.0,0.00019726,2]
[350094289,1737622249666,-7010.26,0.00019726,3]
[350094290,1737622249675,-1375.58,0.00019726,3]
[350094291,1737622249685,-1965.64,0.00019726,3]
[350094292,1737622249694,-4654.23473657,0.00019728,2]
[350094293,1737622249704,-500.0,0.0001974,2]
[350094294,1737622249713,-68984.78524308,0.0001975,2]
[350094295,1737622249723,-1357.206654,0.0001978,5]
[350094296,1737622249733,-1000.0,0.000198,5]
[350094297,1737622249742,-790.70614036,0.000198,2]
[350094298,1737622249752,-1000.0,0.0001982,5]
[350094299,1737622249761,-1000.0,0.0001984,5]
[350094300,1737622249771,-1000.0,0.0001986,5]
[350094301,1737622249781,-500.0,0.00019863,9]
[350094302,1737622249791,-188.0,0.00019863,2]
[350094303,1737622249800,-634.56,0.00019863,3]
[350094304,1737622249809,-500.0,0.00019863,3]
[350094305,1737622249819,-616.62541249,0.00019863,3]
[350094306,1737622249832,-500.0,0.00019863,3]
[350094307,1737622249843,-2647.64,0.00019863,2]
[350094308,1737622249852,-895.86,0.00019863,3]
[350094309,1737622249863,-1559.83,0.00019863,2]
[350094310,1737622249872,-700.83,0.00019863,3]
[350094311,1737622249882,-2511.24,0.00019863,3]
[350094312,1737622249891,-645.67,0.00019863,3]
[350094313,1737622249901,-969.86,0.00019863,3]
[350094314,1737622249911,-2799.5,0.00019863,3]
[350094315,1737622249922,-937.82,0.00019863,3]
[350094316,1737622249931,-659.4,0.00019863,3]
[350094317,1737622249939,-500.56573435,0.00019863,3]
[350094318,1737622249949,-500.0,0.00019863,3]
[350094319,1737622249958,-3627.77,0.00019863,3]
[350094320,1737622249967,-500.0,0.00019863,3]
[350094321,1737622249977,-500.0,0.00019863,3]
[350094322,1737622249986,-754.74,0.00019863,3]
[350094323,1737622249996,-7210.96,0.00019863,3]
[350094324,1737622250005,-500.0,0.00019863,3]
[350094325,1737622250015,-500.0,0.00019863,3]
[350094326,1737622250024,-500.0,0.00019863,3]
[350094327,1737622250034,-1660.82,0.00019863,3]
[350094328,1737622250043,-500.0,0.00019863,3]
[350094329,1737622250052,-4593.76,0.00019863,3]
[350094330,1737622250062,-1603.53,0.00019863,3]
[350094331,1737622250072,-958.57,0.00019863,3]
[350094332,1737622250081,-1428.88,0.00019863,3]
[350094333,1737622250092,-1986.7,0.00019863,3]
[350094334,1737622250102,-500.0,0.00019863,3]
[350094335,1737622250111,-753.38,0.00019863,3]
[350094336,1737622250121,-500.0,0.00019863,3]
[350094337,1737622250130,-2164.04,0.00019863,3]
[350094338,1737622250140,-500.0,0.00019863,3]
[350094339,1737622250150,-865.42,0.00019863,3]
[350094340,1737622250159,-792.88,0.00019863,3]
[350094341,1737622250169,-23239.67,0.00019863,3]
[350094342,1737622250178,-1598.46,0.00019863,3]
[350094343,1737622250188,-3529.7,0.00019863,3]
[350094344,1737622250197,-500.0,0.00019863,3]
[350094345,1737622250206,-938.19,0.00019863,3]
[350094346,1737622250215,-610.21,0.00019863,3]
[350094347,1737622250225,-686.55,0.00019863,3]
[350094348,1737622250235,-599.72,0.00019863,3]
[350094349,1737622250244,-659.62,0.00019863,3]
[350094350,1737622250253,-761.2,0.00019863,3]
[350094351,1737622250262,-7010.26,0.00019863,3]
[350094352,1737622250272,-1375.58,0.00019863,3]
[350094353,1737622250281,-1965.64,0.00019863,3]
[350094354,1737622250290,-1000.0,0.0001988,5]
[350094355,1737622250299,-597.981,0.00019888,7]
[350094356,1737622250308,-151.0,0.000199,2]
[350094357,1737622250317,-1275.354079,0.000199,5]
[350094358,1737622250327,-1000.0,0.000199,5]
[350094359,1737622250338,-151.0,0.000199,2]
[350094360,1737622250347,-7350.25602966,0.000199,2]
[350094361,1737622250356,-1000.0,0.0001992,5]
[350094362,1737622250366,-1000.0,0.0001992,5]
[350094363,1737622250375,-4654.23473657,0.00019934,2]
[350094364,1737622250385,-1000.0,0.0001994,5]
[350094365,1737622250396,-1000.0,0.0001994,5]
[350094366,1737622250405,-1000.0,0.0001996,2]
[350094367,1737622250415,-1000.0,0.0001996,5]
[350094368,1737622250424,-1000.0,0.0001996,5]
[350094369,1737622250433,-500.0,0.00019973,2]
[350094370,1737622250443,-633.84006734,0.00019973,2]
[350094371,1737622250452,-1000.0,0.0001998,5]
[350094372,1737622250462,-1000.0,0.0001998,5]
[350094373,1737622250471,-500.0,0.0002,2]
[350094374,1737622250481,-652.77782377,0.0002,2]
[350094375,1737622250491,-1029.0,0.0002,3]
[350094376,1737622250500,-1027.0,0.0002,3]
[350094377,1737622250509,-1027.0,0.0002,3]
[350094378,1737622250519,-1027.0,0.0002,3]
[350094379,1737622250528,-160.0,0.0002,2]
[350094380,1737622250538,-150.0,0.0002,2]
[350094381,1737622250547,-32044.83223326,0.0002,7]
[350094382,1737622250557,-209.12107916,0.0002,5]
[350094383,1737622250567,-354.62537944,0.0002,2]
[350094384,1737622250576,-1900.91509068,0.0002,2]
[350094385,1737622250589,-19800.8818234,0.0002,2]
[350094386,1737622250598,-188.0,0.0002,2]
[350094387,1737622250608,-2566.14200454,0.0002,2]
[350094388,1737622250617,-1000.0,0.0002,20]
[350094389,1737622250627,-2000.0,0.0002,2]
[350094390,1737622250636,-1106278.61192941,0.0002,2]
[350094391,1737622250646,-68397.51107484,0.0002,2]
[350094392,1737622250742,-460.6049922,0.0002,2]
[350094393,1737622250896,-1200.0,0.00019243,2]
[350094394,1737622250907,-91752.8505153,0.0002,2]
[350094395,1737622250918,-11117.0,0.0002,2]
[350094396,1737622250928,-980.59369286,0.0002,2]
[350094397,1737622250938,-188.0,0.0002,2]
[350094398,1737622250947,-634.56,0.0002,3]
[350094399,1737622250956,-500.0,0.0002,3]
[350094400,1737622250966,-1000.0,0.0002,5]
[350094401,1737622250975,-1000.0,0.0002,5]
[350094402,1737622250985,-500.0,0.0002,3]
[350094403,1737622250994,-2647.64,0.0002,2]
[350094404,1737622251003,-895.86,0.0002,3]
[350094405,1737622251013,-1559.83,0.0002,2]
[350094406,1737622251022,-700.83,0.0002,3]
[350094407,1737622251031,-2511.24,0.0002,3]
[350094408,1737622251041,-645.67,0.0002,3]
[350094409,1737622251050,-160.0,0.0002,3]
[350094410,1737622251145,-160.0,0.0002,7]
[350094411,1737622251155,-160.0,0.0002,7]
[350094412,1737622251165,-969.86,0.0002,3]
[350094413,1737622251174,-2799.5,0.0002,3]
[350094414,1737622251184,-937.82,0.0002,3]
[350094415,1737622251193,-659.4,0.0002,3]
[350094416,1737622251203,-500.0,0.0002,3]
[350094417,1737622251212,-3627.77,0.0002,3]
[350094418,1737622251222,-291.28788333,0.0002,3]
[350094419,1737622251231,-500.0,0.0002,3]
[350094420,1737622251240,-754.74,0.0002,3]
[350094421,1737622251250,-7210.96,0.0002,3]
[350094422,1737622251259,-500.0,0.0002,3]
[350094423,1737622251268,-500.0,0.0002,3]
[350094424,1737622251278,-500.0,0.0002,3]
[350094425,1737622251287,-1660.82,0.0002,3]
[350094426,1737622251297,-468.53404455,0.0002,3]
[350094427,1737622251307,-4593.76,0.0002,3]
[350094428,1737622251316,-1603.53,0.0002,3]
[350094429,1737622251325,-958.57,0.0002,3]
[350094430,1737622251339,-1428.88,0.0002,3]
[350094431,1737622251349,-1986.7,0.0002,3]
[350094432,1737622251359,-641.58011696,0.0002,3]
[350094433,1737622251369,-753.38,0.0002,3]
[350094434,1737622251378,-500.0,0.0002,3]
[350094435,1737622251388,-2164.04,0.0002,3]
[350094436,1737622251397,-500.0,0.0002,3]
[350094437,1737622251407,-865.42,0.0002,3]
[350094438,1737622251416,-792.88,0.0002,3]
[350094439,1737622251426,-17348.68187293,0.0002,3]
[350094440,1737622291846,160.0,0.00021296,120]
[350094442,1737622339875,1060.33,0.00024,120]
[350094443,1737622350746,160.0,0.00021678,120]
[350094445,1737622470714,160.0,0.00022816,120]
[350094446,1737622498467,1000.0,0.00024,120]
[350094447,1737622530878,160.0,0.00023588,120]
[350094448,1737622582308,676.0,0.00024,120]
[350094449,1737622711290,160.0,0.00023747,120]
[350094450,1737622771272,160.0,0.00023751,120]
[350094451,1737622830764,160.0,0.00022913,120]
[350094453,1737622934241,354.40555,0.00013973,2]
[350094454,1737623011301,160.0,0.00022267,120]
[350094459,1737623070734,160.0,0.0002283,120]
[350094460,1737623191320,160.0,0.00021969,120]
[350094470,1737623310716,160.0,0.0002142,120]
[350094473,1737623370697,160.0,0.00022074,120]
[350094474,1737623404269,10000.0,0.00024,120]
[350094475,1737623412242,10000.0,0.00024,120]
[350094476,1737623421811,10000.0,0.00024,120]
[350094477,1737623430761,160.0,0.0002384,120]
[350094875,1737623436215,10000.0,0.00024,120]
[350094960,1737623438624,-450.9347502,0.00016052,2]
[350095091,1737623443170,10000.0,0.00024,120]
[350095122,1737623443510,-49.0652498,0.00016052,2]
[350095124,1737623443520,-500.0,0.00016214,2]
[350095126,1737623443529,-291.17942475,0.00017396,2]
[350095128,1737623443539,-495.9937921,0.00017635,2]
[350095130,1737623443548,-227.5985944,0.00017759,2]
[350095132,1737623443557,-249.2569096,0.00017832,2]
[350095134,1737623443567,-5480.2000391,0.00017977,2]
[350095136,1737623443576,-395.0,0.00018315,2]
[350095138,1737623443586,-500.0,0.00018903,2]
[350095140,1737623443596,-370.939,0.00019,2]
[350095142,1737623443609,-494.19133776,0.00019078,2]
[350095144,1737623443618,-300.0,0.00019099,2]
[350095146,1737623443627,-3014.7795442,0.000191,3]
[350095148,1737623443637,-151.0,0.00019166,2]
[350095150,1737623443646,-380.079,0.00019177,2]
[350095152,1737623443655,-634.57,0.00019178,2]
[350095154,1737623443664,-500.0,0.00019178,2]
[350095156,1737623443674,-500.0,0.00019178,2]
[350095158,1737623443683,-500.0,0.00019178,2]
[350095160,1737623443692,-500.0,0.00019178,2]
[350095162,1737623443702,-500.0,0.00019178,2]
[350095164,1737623443711,-1896.24,0.00019178,2]
[350095166,1737623443721,-1982.98,0.00019178,2]
[350095168,1737623443730,-5606.65,0.00019178,2]
[350095170,1737623443739,-686.99,0.00019178,2]
[350095172,1737623443749,-664.29,0.00019178,2]
[350095174,1737623443758,-500.0,0.00019178,2]
[350095176,1737623443767,-500.0,0.00019178,2]
[350095178,1737623443777,-500.0,0.00019178,2]
[350095180,1737623443786,-500.0,0.00019178,7]
[350095182,1737623443795,-2569.67,0.00019178,2]
[350095184,1737623443804,-534.61,0.00019178,2]
[350095186,1737623443813,-1044.8014842,0.00019178,2]
[350095189,1737623443825,-2209.1085158,0.00019178,2]
[350095191,1737623443834,-1176.41,0.00019178,2]
[350095193,1737623443845,-500.0,0.00019178,2]
[350095195,1737623443854,-500.0,0.00019178,2]
[350095197,1737623443863,-678.99,0.00019178,2]
[350095199,1737623443872,-500.0,0.00019178,2]
[350095201,1737623443881,-533.64,0.00019178,2]
[350095203,1737623443890,-1532.86,0.00019178,2]
[350095205,1737623443900,-1012.13,0.00019178,2]
[350095207,1737623443909,-5107.77,0.00019178,2]
[350095209,1737623443918,-1135.83,0.00019178,2]
[350095211,1737623443927,-561.62,0.00019178,2]
[350095213,1737623443936,-1407.24,0.00019178,2]
[350095216,1737623443945,-500.0,0.00019178,2]
[350095218,1737623443954,-1198.85,0.00019178,2]
[350095220,1737623443963,-500.0,0.00019178,2]
[350095222,1737623443972,-500.0,0.00019178,2]
[350095224,1737623443981,-500.0,0.00019178,2]
[350095226,1737623443990,-2412.34393808,0.00019178,2]
[350095229,1737623444007,-234.93606192,0.00019178,2]
[350095231,1737623444017,-514.91,0.00019178,2]
[350095233,1737623444026,-613.01,0.00019178,2]
[350095235,1737623444035,-16706.9,0.00019178,2]
[350095237,1737623444044,-1104.88,0.00019178,2]
[350095239,1737623444053,-703.64,0.00019178,2]
[350095248,1737623444176,-1031.68,0.00019178,2]
[350095249,1737623444186,-503.05675101,0.00019178,2]
[350095250,1737623444195,-570.9,0.00019178,2]
[350095251,1737623444204,-500.0,0.00019178,2]
[350095252,1737623444213,-193.38699023,0.00019178,2]
[350095253,1737623444222,-500.0,0.00019178,2]
[350095254,1737623444231,-1474.23,0.00019178,2]
[350095255,1737623444241,-500.0,0.00019178,2]
[350095256,1737623444249,-500.0,0.00019178,2]
[350095257,1737623444259,-1778.8,0.00019178,2]
[350095258,1737623444268,-500.0,0.00019178,2]
[350095260,1737623444277,-22476.5559292,0.00019178,11]
[350095261,1737623444287,-168.808545,0.00019178,2]
[350095263,1737623444296,-1943.85,0.000192,2]
[350095265,1737623444305,-295.71713814,0.00019314,2]
[350095266,1737623444315,-165.19128804,0.00019314,2]
[350095268,1737623444324,-500.0,0.00019314,2]
[350095270,1737623444334,-500.0,0.00019314,2]
[350095272,1737623444345,-413.51989327,0.00019314,2]
[350095274,1737623444354,-634.57,0.00019315,3]
[350095276,1737623444363,-500.0,0.00019315,3]
[350095278,1737623444373,-500.0,0.00019315,3]
[350095280,1737623444382,-500.0,0.00019315,3]
[350095282,1737623444391,-500.0,0.00019315,3]
[350095284,1737623444401,-1896.24,0.00019315,2]
[350095286,1737623444410,-1982.98,0.00019315,3]
[350095288,1737623444419,-5606.65,0.00019315,3]
[350095290,1737623444429,-686.99,0.00019315,3]
[350095292,1737623444438,-664.29,0.00019315,3]
[350095294,1737623444447,-500.0,0.00019315,3]
[350095296,1737623444456,-500.0,0.00019315,3]
[350095298,1737623444465,-500.0,0.00019315,3]
[350095300,1737623444475,-2569.67,0.00019315,3]
[350095302,1737623444484,-534.61,0.00019315,3]
[350095304,1737623444493,-3253.91,0.00019315,3]
[350095306,1737623444503,-1176.41,0.00019315,3]
[350095308,1737623444512,-500.0,0.00019315,3]
[350095310,1737623444521,-352.9647333,0.00019315,3]
[350095312,1737623444530,-678.99,0.00019315,3]
[350095314,1737623444540,-533.64,0.00019315,3]
[350095317,1737623444549,-1532.86,0.00019315,3]
[350095318,1737623444559,-1012.13,0.00019315,3]
[350095321,1737623444568,-5107.77,0.00019315,3]
[350095322,1737623444577,-1135.83,0.00019315,3]
[350095325,1737623444586,-561.62,0.00019315,3]
[350095326,1737623444596,-1407.24,0.00019315,3]
[350095329,1737623444606,-500.0,0.00019315,3]
[350095331,1737623444616,-500.0,0.00019315,3]
[350095333,1737623444625,-1198.85,0.00019315,3]
[350095335,1737623444634,-500.0,0.00019315,3]
[350095337,1737623444643,-500.0,0.00019315,3]
[350095338,1737623444652,-2647.28,0.00019315,3]
[350095340,1737623444661,-514.91,0.00019315,3]
[350095343,1737623444670,-613.01,0.00019315,3]
[350095345,1737623444679,-16706.9,0.00019315,3]
[350095346,1737623444688,-1104.88,0.00019315,2]
[350095348,1737623444697,-703.64,0.00019315,3]
[350095350,1737623444707,-1031.68,0.00019315,3]
[350095353,1737623444716,-570.9,0.00019315,3]
[350095354,1737623444727,-500.0,0.00019315,3]
[350095357,1737623444737,-500.0,0.00019315,3]
[350095358,1737623444746,-1474.23,0.00019315,3]
[350095360,1737623444755,-500.0,0.00019315,3]
[350095362,1737623444764,-500.0,0.00019315,3]
[350095365,1737623444773,-1778.8,0.00019315,3]
[350095366,1737623444782,-500.0,0.00019315,3]
[350095369,1737623444791,-500.0,0.00019451,2]
[350095371,1737623444801,-153.23000076,0.00019451,2]
[350095373,1737623444810,-160.34396666,0.00019451,2]
[350095375,1737623444819,-634.57,0.00019452,3]
[350095377,1737623444828,-500.0,0.00019452,3]
[350095379,1737623444837,-500.0,0.00019452,3]
[350095381,1737623444847,-500.0,0.00019452,3]
[350095382,1737623444856,-500.0,0.00019452,3]
[350095384,1737623444865,-1896.24,0.00019452,2]
[350095386,1737623444879,-1982.98,0.00019452,3]
[350095388,1737623444889,-5606.65,0.00019452,3]
[350095390,1737623444899,-686.99,0.00019452,3]
[350095392,1737623444908,-664.29,0.00019452,3]
[350095394,1737623444917,-500.0,0.00019452,3]
[350095396,1737623444927,-500.0,0.00019452,3]
[350095398,1737623444937,-500.0,0.00019452,3]
[350095400,1737623444947,-2569.67,0.00019452,3]
[350095402,1737623444957,-534.61,0.00019452,3]
[350095404,1737623444966,-3253.91,0.00019452,3]
[350095406,1737623444975,-1176.41,0.00019452,3]
[350095408,1737623444984,-500.0,0.00019452,3]
[350095410,1737623444993,-678.99,0.00019452,3]
[350095412,1737623445002,-533.64,0.00019452,3]
[350095414,1737623445012,-1532.86,0.00019452,3]
[350095416,1737623445021,-1012.13,0.00019452,3]
[350095418,1737623445029,-5107.77,0.00019452,3]
[350095420,1737623445039,-1135.83,0.00019452,3]
[350095422,1737623445048,-561.62,0.00019452,3]
[350095424,1737623445057,-1407.24,0.00019452,3]
[350095426,1737623445066,-500.0,0.00019452,3]
[350095428,1737623445075,-500.0,0.00019452,3]
[350095430,1737623445085,-1198.85,0.00019452,3]
[350095432,1737623445094,-500.0,0.00019452,3]
[350095434,1737623445103,-500.0,0.00019452,3]
[350095436,1737623445113,-2647.28,0.00019452,3]
[350095438,1737623445123,-514.91,0.00019452,3]
[350095440,1737623445132,-613.01,0.00019452,3]
[350095442,1737623445141,-16706.9,0.00019452,3]
[350095444,1737623445153,-1104.88,0.00019452,2]
[350095446,1737623445164,-703.64,0.00019452,3]
[350095448,1737623445173,-1031.68,0.00019452,3]
[350095450,1737623445182,-570.9,0.00019452,3]
[350095452,1737623445191,-500.0,0.00019452,3]
[350095454,1737623445201,-500.0,0.00019452,3]
[350095456,1737623445210,-1474.23,0.00019452,3]
[350095458,1737623445219,-500.0,0.00019452,3]
[350095460,1737623445229,-500.0,0.00019452,3]
[350095462,1737623445238,-1778.8,0.00019452,3]
[350095464,1737623445247,-500.0,0.00019452,3]
[350095466,1737623445257,-634.57,0.00019589,3]
[350095468,1737623445266,-500.0,0.00019589,3]
[350095470,1737623445275,-500.0,0.00019589,3]
[350095472,1737623445284,-500.0,0.00019589,3]
[350095474,1737623445293,-500.0,0.00019589,3]
[350095476,1737623445302,-1896.24,0.00019589,2]
[350095478,1737623445311,-1982.98,0.00019589,3]
[350095480,1737623445320,-1800.17972999,0.00019589,3]
[350096010,1737623459515,10000.0,0.00024,120]
[350096011,1737623465912,10000.0,0.00024,120]
[350096013,1737623565188,78000.0,0.00024,120]
[350096014,1737623610741,160.0,0.00023808,120]
[350096015,1737623670736,160.0,0.00023885,120]
[350096016,1737623707909,10000.0,0.00024,120]
[350096017,1737623796070,355.734101,0.00013973,2]
[350096018,1737623851015,160.0,0.00023736,120]
[350096020,1737623970742,160.0,0.0002291,120]
[350096021,1737624011584,2000.0,0.00024,120]
[350096022,1737624030752,160.0,0.00023863,120]
[350096023,1737624032546,5000.0,0.00024,120]
[350096024,1737624132144,2226.0,0.00024,120]
[350096025,1737624147171,2500.0,0.00024,120]
[350096026,1737624157814,2000.0,0.00024,120]
[350096028,1737624270766,160.0,0.00023264,120]
[350096035,1737624390503,160.0,0.00023702,120]
[350096042,1737624498497,1096.01800381,0.0002,120]
[350096043,1737624501635,188.0,0.0002,120]
[350096045,1737624507732,305.52089088,7e-05,120]
[350096046,1737624511357,160.0,0.00022518,120]
[350096047,1737624516625,6158.97203731,0.0002,120]
[350096048,1737624521196,-500.0,0.00019178,7]
[350096058,1737624571765,-424.84278194,0.00016,2]
[350096059,1737624571786,-642.409548,0.00016598,2]
[350096060,1737624571806,-642.409548,0.00016766,2]
[350096061,1737624571948,-642.409548,0.00017808,2]
[350096062,1737624571970,-235.977,0.00018877,2]
[350096063,1737624571991,-355.478,0.00019,2]
[350096064,1737624572013,-2000.0,0.00019,2]
[350096065,1737624572035,-432.41742054,0.00019078,2]
[350096066,1737624572055,-151.0,0.00019166,2]
[350096067,1737624572076,-300.0,0.00019177,2]
[350096068,1737624572097,-500.0,0.00019178,2]
[350096069,1737624572117,-500.0,0.00019178,2]
[350096070,1737624572139,-500.0,0.00019178,2]
[350096071,1737624572164,-500.0,0.00019178,2]
[350096072,1737624572186,-500.0,0.00019178,2]
[350096073,1737624572207,-528.81,0.00019178,2]
[350096074,1737624572227,-500.0,0.00019178,2]
[350096075,1737624572248,-514.74830745,0.00019178,2]
[350096076,1737624572268,-310.46387521,0.00019178,2]
[350096077,1737624572289,-500.0,0.00019178,2]
[350096078,1737624572310,-500.0,0.00019178,2]
[350096079,1737624572330,-196.82414318,0.00019178,2]
[350096080,1737624572351,-500.0,0.00019178,2]
[350096081,1737624572370,-500.0,0.00019178,2]
[350096082,1737624572391,-500.0,0.00019178,2]
[350096083,1737624572410,-509.61724572,0.00019178,2]
[350096084,1737624572432,-500.0,0.00019178,2]
[350096085,1737624572453,-500.0,0.00019178,2]
[350096086,1737624572473,-368.59258196,0.00019178,2]
[350096087,1737624630745,160.0,0.00021088,120]
[350096117,1737624632819,-424.84278194,0.00015682,2]
[350096118,1737624632828,-424.84278194,0.0001584,2]
[350096119,1737624632838,-197.81,0.00019166,2]
[350096120,1737624632848,-300.0,0.00019177,2]
[350096121,1737624632857,-131.40741804,0.00019178,2]
[350096122,1737624632867,-147.88346487,0.00019178,2]
[350096123,1737624636375,-500.0,0.00019863,9]
[350096154,1737624638826,-352.11653513,0.00019178,2]
[350096156,1737624638835,-500.0,0.00019178,2]
[350096158,1737624638845,-505.34602776,0.00019178,2]
[350096160,1737624638854,-500.0,0.00019178,2]
[350096162,1737624638864,-505.9926167,0.00019178,2]
[350096164,1737624638874,-500.90986714,0.00019178,2]
[350096166,1737624638883,-500.0,0.00019178,2]
[350096168,1737624638893,-404.90455279,0.00019178,2]
[350096170,1737624638902,-509.58524936,0.00019178,2]
[350096172,1737624638911,-500.0,0.00019178,2]
[350096174,1737624638921,-505.73363953,0.00019178,2]
[350096176,1737624638931,-500.0,0.00019178,2]
[350096178,1737624638939,-500.0,0.00019178,2]
[350096180,1737624638949,-509.97871439,0.00019178,2]
[350096182,1737624638959,-302.85196127,0.00019178,2]
[350096184,1737624638967,-500.0,0.00019178,2]
[350096186,1737624638977,-500.0,0.00019178,2]
[350096188,1737624638986,-506.20296024,0.00019178,2]
[350096190,1737624638995,-500.0,0.00019178,2]
[350096192,1737624639004,-503.54131032,0.00019178,2]
[350096194,1737624639014,-500.0,0.00019178,2]
[350096196,1737624639023,-500.0,0.00019178,2]
[350096198,1737624639032,-201.13414929,0.00019178,2]
[350096200,1737624639041,-500.0,0.00019178,2]
[350096202,1737624639051,-500.0,0.00019178,2]
[350096204,1737624639059,-500.0,0.00019178,2]
[350096206,1737624639069,-500.0,0.00019178,2]
[350096208,1737624639078,-500.0,0.00019178,2]
[350096210,1737624639087,-500.0,0.00019178,2]
[350096212,1737624639097,-500.0,0.00019178,2]
[350096214,1737624639106,-500.0,0.00019178,2]
[350096216,1737624639115,-500.0,0.00019178,2]
[350096218,1737624639125,-500.0,0.00019178,2]
[350096220,1737624639134,-500.0,0.00019178,2]
[350096222,1737624639144,-500.0,0.00019178,2]
[350096224,1737624639153,-500.0,0.00019178,2]
[350096226,1737624639163,-500.0,0.00019178,2]
[350096228,1737624639172,-500.0,0.00019178,2]
[350096230,1737624639181,-500.0,0.00019178,2]
[350096232,1737624639190,-353.95385077,0.00019178,2]
[350096238,1737624639241,-146.04614923,0.00019178,2]
[350096240,1737624639250,-169.01660921,0.00019178,2]
[350096243,1737624639263,-330.98339079,0.00019178,2]
[350096245,1737624639272,-500.0,0.00019178,2]
[350096247,1737624639281,-530.44560759,0.00019178,2]
[350096249,1737624639291,-500.0,0.00019178,2]
[350096251,1737624639300,-500.0,0.00019178,2]
[350096253,1737624639309,-500.0,0.00019178,2]
[350096255,1737624639318,-500.0,0.00019178,2]
[350096257,1737624639328,-192.27012577,0.00019178,2]
[350096259,1737624639337,-500.0,0.00019178,2]
[350096261,1737624639347,-500.0,0.00019178,2]
[350096263,1737624639357,-508.5352812,0.00019178,2]
[350096265,1737624639366,-505.01112862,0.00019178,2]
[350096267,1737624639376,-500.0,0.00019178,2]
[350096269,1737624639385,-444.93860606,0.00019178,2]
[350096271,1737624639394,-215.20948258,0.00019178,2]
[350096273,1737624639403,-235.17167366,0.00019178,2]
[350096275,1737624639412,-500.0,0.00019178,2]
[350096277,1737624639421,-500.0,0.00019178,2]
[350096279,1737624639430,-305.23068279,0.00019178,2]
[350096281,1737624639440,-500.0,0.00019178,2]
[350096283,1737624639449,-500.0,0.00019178,2]
[350096285,1737624639458,-1580.2,0.00019178,2]
[350096287,1737624639468,-518.21629105,0.00019178,2]
[350096289,1737624639478,-636.52,0.00019178,2]
[350096291,1737624639487,-1069.82,0.00019178,2]
[350096293,1737624639497,-2377.59,0.00019178,2]
[350096295,1737624639511,-500.0,0.00019178,2]
[350096297,1737624639521,-4918.05,0.00019178,2]
[350096299,1737624639531,-923.56,0.00019178,2]
[350096301,1737624639540,-520.38,0.00019178,2]
[350096303,1737624639549,-1598.12,0.00019178,2]
[350096305,1737624639560,-500.0,0.00019178,2]
[350096307,1737624639569,-1351.11,0.00019178,2]
[350096309,1737624639579,-1310.82,0.00019178,2]
[350096311,1737624639588,-500.0,0.00019178,2]
[350096313,1737624639597,-500.0,0.00019178,2]
[350096315,1737624639606,-563.91,0.00019178,2]
[350096317,1737624639615,-77.28243774,0.00019178,2]
[350096319,1737624639628,-422.71756226,0.00019178,2]
[350096321,1737624639637,-500.0,0.00019178,2]